fUSD/lending_fUSD_20250109
["ID","MTS","AMOUNT","RATE_DAILY","PERIOD"]
[348246332,1736416259169,-500.0,0.00010895,2]
[348246333,1736416259179,-500.0,0.00010895,2]
[348246334,1736416259189,-500.0,0.00010895,2]
[348246335,1736416259198,-500.0,0.00010895,2]
[348246336,1736416259208,-500.0,0.00010895,2]
[348246337,1736416259218,-500.0,0.00010895,2]
[348246338,1736416259227,-331.73590909,0.00010895,2]
[348246339,1736416259237,-601.44,0.00010895,2]
[348246340,1736416259246,-500.0,0.00010895,2]
[348246341,1736416259256,-500.0,0.00010895,2]
[348246342,1736416259266,-500.0,0.00010895,2]
[348246343,1736416259275,-500.0,0.00010895,2]
[348246344,1736416259286,-225.07,0.00010895,2]
[348246345,1736416259295,-500.0,0.00010895,2]
[348246346,1736416259305,-500.0,0.00010895,2]
[348246347,1736416259315,-631.25041923,0.00010895,2]
[348246348,1736416259324,-500.0,0.00010895,2]
[348246349,1736416259334,-500.0,0.00010895,2]
[348246350,1736416259343,-500.0,0.00010895,2]
[348246351,1736416259353,-500.0,0.00010895,2]
[348246352,1736416259363,-500.0,0.00010895,2]
[348246353,1736416259372,-500.0,0.00010895,2]
[348246354,1736416259382,-468.09,0.00010895,2]
[348246355,1736416259392,-273.01,0.00010895,2]
[348246356,1736416259401,-413.25,0.00010895,2]
[348246357,1736416259411,-500.0,0.00010895,2]
[348246358,1736416259422,-500.0,0.00010895,2]
[348246359,1736416259432,-500.0,0.00010895,2]
[348246360,1736416259441,-500.0,0.00010895,2]
[348246361,1736416259452,-284.5,0.00010895,2]
[348246362,1736416259462,-500.0,0.00010895,2]
[348246363,1736416259471,-500.0,0.00010895,2]
[348246364,1736416259481,-463.6232637,0.00010895,2]
[348246365,1736416259491,-500.0,0.00010895,2]
[348246366,1736416259501,-500.0,0.00010895,2]
[348246367,1736416259510,-500.0,0.00010895,2]
[348246368,1736416259520,-530.25,0.00010895,2]
[348246369,1736416259530,-95.77671148,0.00010895,2]
[348246370,1736416259800,-404.22328852,0.00010895,2]
[348246371,1736416259809,-164.9698038,0.000109,2]
[348246372,1736416259819,-1955.7712503,0.00010914,2]
[348246373,1736416259830,-150.0,0.0001092,2]
[348246374,1736416259840,-150.0,0.00010923,2]
[348246375,1736416259850,-150.0,0.00010938,2]
[348246376,1736416259860,-999.0,0.00010958,2]
[348246377,1736416259871,-500.0,0.00010959,2]
[348246378,1736416259881,-500.0,0.00010959,2]
[348246379,1736416259892,-500.0,0.00010959,2]
[348246380,1736416259902,-500.0,0.00010959,2]
[348246381,1736416259913,-2000.0,0.00010959,2]
[348246382,1736416259923,-2000.0,0.00010959,2]
[348246383,1736416259934,-110.53945574,0.00010959,2]
[348246384,1736416259946,-1889.46054426,0.00010959,2]
[348246385,1736416259956,-2000.0,0.00010959,2]
[348246386,1736416259966,-2000.0,0.00010959,2]
[348246387,1736416259978,-500.0,0.00010959,2]
[348246388,1736416259987,-500.0,0.00010959,2]
[348246389,1736416259997,-200.0,0.00010959,2]
[348246390,1736416260008,-200.0,0.00010959,2]
[348246391,1736416260018,-200.0,0.00010959,2]
[348246392,1736416260028,-200.0,0.00010959,2]
[348246393,1736416260037,-200.0,0.00010959,2]
[348246394,1736416260048,-150.0,0.00010959,2]
[348246395,1736416260058,-392.23067248,0.00010968,2]
[348246396,1736416260070,-150.0,0.0001098,2]
[348246397,1736416260080,-150.0,0.00010985,2]
[348246398,1736416260090,-500.0,0.00010986,2]
[348246399,1736416260100,-12500.90116804,0.00011,2]
[348246400,1736416260110,-550.0,0.00011,2]
[348246401,1736416260119,-1955.7712503,0.00011024,2]
[348246402,1736416260129,-150.0,0.00011031,2]
[348246403,1736416260139,-150.0,0.0001104,2]
[348246404,1736416260149,-609.98,0.00011041,2]
[348246405,1736416260159,-173.0,0.00011048,2]
[348246406,1736416260170,-201.0,0.00011048,2]
[348246407,1736416260179,-201.0,0.00011048,2]
[348246408,1736416260189,-4834.74995022,0.0001105,2]
[348246409,1736416260199,-360.24493975,0.0001105,2]
[348246410,1736416260209,-1165.45,0.00011066,2]
[348246411,1736416260219,-858.53,0.00011066,2]
[348246412,1736416260229,-500.0,0.00011066,2]
[348246413,1736416260239,-507.48,0.00011066,2]
[348246414,1736416260248,-1141.63,0.00011066,2]
[348246415,1736416260257,-500.0,0.00011066,2]
[348246416,1736416260268,-500.0,0.00011066,2]
[348246417,1736416260279,-500.0,0.00011066,2]
[348246418,1736416260289,-500.0,0.00011066,2]
[348246419,1736416260299,-961.76,0.00011066,2]
[348246420,1736416260309,-814.31,0.00011066,2]
[348246421,1736416260319,-500.0,0.00011066,2]
[348246422,1736416260330,-779.38,0.00011066,2]
[348246423,1736416260339,-500.0,0.00011066,2]
[348246424,1736416260349,-1257.67,0.00011066,2]
[348246425,1736416260359,-500.0,0.00011066,2]
[348246426,1736416260368,-606.73,0.00011066,2]
[348246427,1736416260377,-500.0,0.00011066,2]
[348246428,1736416260386,-4035.82,0.00011066,2]
[348246429,1736416260396,-500.0,0.00011066,2]
[348246430,1736416260406,-416.88,0.00011067,2]
[348246431,1736416260416,-1143.36,0.00011067,2]
[348246432,1736416260426,-500.0,0.00011067,2]
[348246433,1736416260435,-500.0,0.00011067,2]
[348246434,1736416260444,-216.25173988,0.00011067,2]
[348246435,1736416260463,-457.18826012,0.00011067,2]
[348246436,1736416260472,-410.3232004,0.00011067,2]
[348246437,1736416260484,-792.2467996,0.00011067,2]
[348246438,1736416260494,-1322.0,0.00011067,2]
[348246439,1736416260504,-518.16,0.00011067,2]
[348246440,1736416260514,-500.0,0.00011067,2]
[348246441,1736416260523,-2173.7,0.00011067,2]
[348246442,1736416260533,-500.0,0.00011067,2]
[348246443,1736416260543,-500.0,0.00011067,2]
[348246444,1736416260553,-628.28,0.00011067,2]
[348246445,1736416260563,-732.41,0.00011067,2]
[348246446,1736416260572,-500.0,0.00011067,2]
[348246447,1736416260583,-500.0,0.00011067,2]
[348246448,1736416260593,-500.0,0.00011067,2]
[348246449,1736416260656,-258.25,0.00011067,2]
[348246450,1736416260666,-992.63,0.00011067,2]
[348246451,1736416260676,-500.0,0.00011067,2]
[348246452,1736416260686,-789.06,0.00011067,2]
[348246453,1736416260695,-500.0,0.00011067,2]
[348246454,1736416260706,-500.0,0.00011067,2]
[348246455,1736416260715,-1182.42,0.00011067,2]
[348246456,1736416260725,-500.0,0.00011067,2]
[348246457,1736416260736,-707.76,0.00011067,2]
[348246458,1736416260745,-500.0,0.00011067,2]
[348246459,1736416260755,-298.0850128,0.00011067,2]
[348246460,1736416260765,-500.0,0.00011067,2]
[348246461,1736416260775,-500.0,0.00011067,2]
[348246462,1736416260784,-2394.54,0.00011067,2]
[348246463,1736416260794,-734.110221,0.00011067,2]
[348246464,1736416260803,-500.0,0.00011067,2]
[348246465,1736416260812,-1852.6,0.00011067,2]
[348246466,1736416260821,-500.0,0.00011068,2]
[348246467,1736416260834,-500.0,0.00011068,2]
[348246468,1736416260844,-500.0,0.00011068,2]
[348246469,1736416260853,-173.64,0.00011068,2]
[348246470,1736416260863,-502.7635041,0.00011068,2]
[348246471,1736416260873,-500.0,0.00011068,2]
[348246472,1736416260882,-500.0,0.00011068,2]
[348246473,1736416260892,-501.36,0.00011068,2]
[348246474,1736416260902,-500.0,0.00011068,2]
[348246475,1736416260912,-500.0,0.00011068,2]
[348246476,1736416260923,-500.0,0.00011068,2]
[348246477,1736416260933,-500.0,0.00011068,2]
[348246478,1736416260942,-500.0,0.00011068,2]
[348246479,1736416260951,-500.0,0.00011068,2]
[348246480,1736416260962,-500.0,0.00011068,2]
[348246481,1736416260971,-500.0,0.00011068,2]
[348246482,1736416260981,-500.0,0.00011068,2]
[348246483,1736416260990,-500.0,0.00011068,2]
[348246484,1736416260999,-500.0,0.00011068,2]
[348246485,1736416261009,-500.0,0.00011068,2]
[348246486,1736416261019,-1704.96,0.00011068,2]
[348246487,1736416261028,-500.0,0.00011068,2]
[348246488,1736416261038,-722.649923,0.00011068,2]
[348246489,1736416261047,-612.44,0.00011068,2]
[348246490,1736416261056,-1697.74,0.00011068,2]
[348246491,1736416261066,-500.0,0.00011068,2]
[348246492,1736416261075,-500.0,0.00011068,2]
[348246493,1736416261084,-500.0,0.00011068,2]
[348246494,1736416261094,-500.0,0.00011068,2]
[348246495,1736416261104,-500.0,0.00011068,2]
[348246496,1736416261113,-500.0,0.00011068,2]
[348246497,1736416261122,-500.0,0.00011068,2]
[348246498,1736416261132,-500.0,0.00011068,2]
[348246499,1736416261141,-500.0,0.00011068,2]
[348246500,1736416261150,-500.0,0.00011068,2]
[348246501,1736416261159,-1819.6,0.00011068,2]
[348246502,1736416261171,-500.0,0.00011068,2]
[348246503,1736416261180,-500.0,0.00011068,2]
[348246504,1736416261189,-587.62,0.00011068,2]
[348246505,1736416261199,-155.285616,0.0001107,4]
[348246506,1736416261208,-214.191047,0.0001107,4]
[348246507,1736416261217,-150.0,0.00011076,2]
[348246508,1736416261227,-150.0,0.00011077,2]
[348246509,1736416261237,-972.59,0.0001109,2]
[348246510,1736416261246,-500.0,0.0001109,2]
[348246511,1736416261255,-500.0,0.0001109,2]
[348246512,1736416261265,-512.29,0.0001109,2]
[348246513,1736416261273,-505.68,0.0001109,2]
[348246514,1736416261283,-500.0,0.0001109,2]
[348246515,1736416261293,-531.99,0.0001109,2]
[348246516,1736416261302,-880.05,0.0001109,2]
[348246517,1736416261312,-1053.8,0.0001109,2]
[348246518,1736416261321,-1265.65,0.0001109,2]
[348246519,1736416261331,-3069.57,0.0001109,2]
[348246520,1736416261340,-500.0,0.0001109,2]
[348246521,1736416261349,-500.0,0.0001109,2]
[348246522,1736416261359,-500.0,0.0001109,2]
[348246523,1736416261368,-500.0,0.0001109,2]
[348246524,1736416261378,-500.0,0.0001109,2]
[348246525,1736416261387,-537.88,0.0001109,2]
[348246526,1736416261396,-784.13,0.0001109,2]
[348246527,1736416261406,-500.0,0.00011091,2]
[348246528,1736416261415,-500.0,0.00011091,2]
[348246529,1736416261426,-500.0,0.00011091,2]
[348246530,1736416261435,-500.0,0.00011091,2]
[348246531,1736416261444,-604.95,0.00011091,2]
[348246532,1736416261454,-500.0,0.00011091,2]
[348246533,1736416261463,-500.0,0.00011091,2]
[348246534,1736416261472,-500.0,0.00011091,2]
[348246535,1736416261481,-500.0,0.00011091,2]
[348246536,1736416261490,-500.0,0.00011091,2]
[348246537,1736416261500,-500.0,0.00011091,2]
[348246538,1736416261510,-500.0,0.00011091,2]
[348246539,1736416261519,-341.46,0.00011091,2]
[348246540,1736416261528,-500.0,0.00011091,2]
[348246541,1736416261537,-500.0,0.00011091,2]
[348246542,1736416261548,-500.0,0.00011091,2]
[348246543,1736416261559,-500.0,0.00011091,2]
[348246544,1736416261569,-500.0,0.00011091,2]
[348246545,1736416261578,-500.0,0.00011091,2]
[348246546,1736416261588,-500.0,0.00011091,2]
[348246547,1736416261598,-500.0,0.00011091,2]
[348246548,1736416261608,-500.0,0.00011091,2]
[348246549,1736416261618,-500.0,0.00011091,2]
[348246550,1736416261628,-500.0,0.00011091,2]
[348246551,1736416261638,-500.0,0.00011091,2]
[348246552,1736416261647,-500.0,0.00011091,2]
[348246553,1736416261657,-500.0,0.00011091,2]
[348246554,1736416261667,-500.0,0.00011091,2]
[348246555,1736416261677,-500.0,0.00011091,2]
[348246556,1736416261687,-500.0,0.00011091,2]
[348246557,1736416261696,-500.0,0.00011091,2]
[348246558,1736416261706,-500.0,0.00011091,2]
[348246559,1736416261716,-500.0,0.00011091,2]
[348246560,1736416261725,-500.0,0.00011091,2]
[348246561,1736416261734,-500.0,0.00011091,2]
[348246562,1736416261744,-500.0,0.00011091,2]
[348246563,1736416261753,-617.25,0.00011091,2]
[348246564,1736416261763,-500.0,0.00011091,2]
[348246565,1736416261773,-500.0,0.00011091,2]
[348246566,1736416261782,-500.0,0.00011091,2]
[348246567,1736416261791,-500.0,0.00011091,2]
[348246568,1736416261801,-500.0,0.00011091,2]
[348246569,1736416261811,-1268.36,0.00011091,2]
[348246570,1736416261821,-500.0,0.00011091,2]
[348246571,1736416261835,-500.0,0.00011091,2]
[348246572,1736416261846,-500.0,0.00011091,2]
[348246573,1736416261857,-500.0,0.00011091,2]
[348246574,1736416261866,-500.0,0.00011091,2]
[348246575,1736416261877,-1182.89,0.00011091,2]
[348246576,1736416261887,-500.0,0.00011091,2]
[348246577,1736416261897,-500.0,0.00011091,2]
[348246578,1736416261908,-500.0,0.00011091,2]
[348246579,1736416261920,-500.0,0.00011091,2]
[348246580,1736416261930,-500.0,0.00011091,2]
[348246581,1736416261939,-510.12,0.00011091,2]
[348246582,1736416261949,-500.0,0.00011091,2]
[348246583,1736416261959,-500.0,0.00011091,2]
[348246584,1736416261969,-500.0,0.00011091,2]
[348246585,1736416261979,-500.0,0.00011091,2]
[348246586,1736416261988,-500.0,0.00011091,2]
[348246587,1736416261998,-500.0,0.00011091,2]
[348246588,1736416262008,-500.0,0.00011091,2]
[348246589,1736416262018,-500.0,0.00011091,2]
[348246590,1736416262028,-500.0,0.00011091,2]
[348246591,1736416262038,-500.0,0.00011091,2]
[348246592,1736416262047,-500.0,0.00011091,2]
[348246593,1736416262057,-500.0,0.00011091,2]
[348246594,1736416262068,-500.0,0.00011091,2]
[348246595,1736416262078,-500.0,0.00011091,2]
[348246596,1736416262089,-500.0,0.00011091,2]
[348246597,1736416262099,-500.0,0.00011091,2]
[348246598,1736416262111,-633.87882643,0.00011091,2]
[348246599,1736416262123,-500.0,0.00011091,2]
[348246600,1736416262135,-500.0,0.00011091,2]
[348246601,1736416262145,-500.0,0.00011091,2]
[348246602,1736416262156,-629.88,0.00011091,2]
[348246603,1736416262166,-364.48,0.00011091,2]
[348246604,1736416262176,-500.0,0.00011091,2]
[348246605,1736416262185,-500.0,0.00011091,2]
[348246606,1736416262195,-286.4,0.00011092,2]
[348246607,1736416262204,-704.74,0.00011092,2]
[348246608,1736416262213,-1330.99,0.00011092,2]
[348246609,1736416262223,-1075.63,0.00011092,2]
[348246610,1736416262233,-882.65,0.00011092,2]
[348246611,1736416262244,-550.98,0.00011092,2]
[348246612,1736416262254,-759.06,0.00011092,2]
[348246613,1736416262264,-2084.43,0.00011092,2]
[348246614,1736416262273,-932.11,0.00011092,2]
[348246615,1736416262284,-737.78,0.00011092,2]
[348246616,1736416262293,-764.55,0.00011092,2]
[348246617,1736416262303,-618.21,0.00011095,2]
[348246618,1736416262312,-500.0,0.00011095,2]
[348246619,1736416262322,-500.0,0.00011095,2]
[348246620,1736416262332,-665.31,0.00011095,2]
[348246621,1736416262342,-841.49,0.00011095,2]
[348246622,1736416262352,-589.24,0.00011095,2]
[348246623,1736416262362,-1346.27,0.00011095,2]
[348246624,1736416262372,-844.91,0.00011095,2]
[348246625,1736416262383,-2336.54,0.00011095,2]
[348246626,1736416262392,-520.64,0.00011095,2]
[348246627,1736416262403,-752.35793388,0.00011099,2]
[348246628,1736416262414,-752.35793384,0.00011099,2]
[348246629,1736416262425,-752.35793384,0.00011099,2]
[348246630,1736416262435,-752.35793384,0.00011099,2]
[348246631,1736416262444,-752.35793384,0.00011099,2]
[348246632,1736416262455,-752.35793384,0.00011099,2]
[348246633,1736416262465,-752.35793384,0.00011099,2]
[348246634,1736416262474,-752.35793384,0.00011099,2]
[348246635,1736416262483,-303.0,0.000111,2]
[348246636,1736416262493,-597.0,0.000111,2]
[348246637,1736416262503,-150.0,0.000111,2]
[348246638,1736416262512,-150.0,0.0001111,2]
[348246639,1736416262521,-150.0,0.00011123,2]
[348246640,1736416262531,-150.0,0.00011123,2]
[348246641,1736416262541,-1955.7712503,0.00011134,2]
[348246642,1736416262551,-150.0,0.00011155,2]
[348246643,1736416262561,-150.0,0.0001116,2]
[348246644,1736416262571,-281.1,0.00011169,2]
[348246645,1736416262580,-617.62510631,0.00011169,2]
[348246646,1736416262589,-500.0,0.00011169,2]
[348246647,1736416262598,-500.0,0.00011169,2]
[348246648,1736416262608,-592.06,0.00011169,2]
[348246649,1736416262618,-500.0,0.00011169,2]
[348246650,1736416262628,-500.0,0.00011169,2]
[348246651,1736416262638,-500.0,0.00011169,2]
[348246652,1736416262647,-550.79838431,0.00011169,2]
[348246653,1736416262656,-500.0,0.00011169,2]
[348246654,1736416262667,-500.0,0.00011169,2]
[348246655,1736416262677,-500.0,0.00011169,2]
[348246656,1736416262686,-601.44,0.00011169,2]
[348246657,1736416262696,-500.0,0.00011169,2]
[348246658,1736416262705,-500.0,0.00011169,2]
[348246659,1736416262715,-500.0,0.00011169,2]
[348246660,1736416262724,-420.83,0.00011169,2]
[348246661,1736416262734,-469.29,0.00011169,2]
[348246662,1736416262744,-500.0,0.00011169,2]
[348246663,1736416262754,-500.0,0.00011169,2]
[348246664,1736416262764,-535.64,0.00011169,2]
[348246665,1736416262773,-500.0,0.00011169,2]
[348246666,1736416262782,-500.0,0.00011169,2]
[348246667,1736416262792,-500.0,0.00011169,2]
[348246668,1736416262802,-500.0,0.00011169,2]
[348246669,1736416262812,-500.0,0.00011169,2]
[348246670,1736416262822,-500.0,0.00011169,2]
[348246671,1736416262833,-500.0,0.00011169,2]
[348246672,1736416262843,-500.0,0.00011169,2]
[348246673,1736416262853,-500.0,0.00011169,2]
[348246674,1736416262863,-500.0,0.00011169,2]
[348246675,1736416262874,-500.0,0.00011169,2]
[348246676,1736416262883,-150.0,0.00011169,2]
[348246677,1736416262892,-150.0,0.00011179,2]
[348246678,1736416262902,-752.35793384,0.0001118,2]
[348246679,1736416262912,-150.0,0.00011215,2]
[348246680,1736416262925,-150.0,0.0001122,2]
[348246681,1736416262935,-1955.7712503,0.00011245,2]
[348246682,1736416262945,-150.0,0.00011262,2]
[348246683,1736416262954,-150.0,0.0001128,2]
[348246684,1736416262964,-150.0,0.00011308,2]
[348246685,1736416262974,-345.42,0.00011315,2]
[348246686,1736416262985,-150.0,0.0001134,2]
[348246687,1736416262994,-1165.45,0.0001134,2]
[348246688,1736416263004,-858.53,0.0001134,2]
[348246689,1736416263014,-500.0,0.0001134,2]
[348246690,1736416263024,-507.48,0.0001134,2]
[348246691,1736416263033,-1141.63,0.0001134,2]
[348246692,1736416263043,-500.0,0.0001134,2]
[348246693,1736416263054,-500.0,0.0001134,2]
[348246694,1736416263064,-500.0,0.0001134,2]
[348246695,1736416263075,-391.0,0.0001134,2]
[348246696,1736416263085,-961.76,0.0001134,2]
[348246697,1736416263095,-814.31,0.0001134,2]
[348246698,1736416263105,-500.0,0.0001134,2]
[348246699,1736416263115,-779.38,0.0001134,2]
[348246700,1736416263124,-500.0,0.0001134,2]
[348246701,1736416263134,-1257.67,0.0001134,2]
[348246702,1736416263143,-500.0,0.0001134,2]
[348246703,1736416263153,-4035.82,0.0001134,2]
[348246704,1736416263163,-500.0,0.0001134,2]
[348246705,1736416263174,-1143.36,0.00011341,2]
[348246706,1736416263184,-582.48434178,0.00011341,2]
[348246707,1736416263194,-500.0,0.00011341,2]
[348246708,1736416263204,-673.44,0.00011341,2]
[348246709,1736416263214,-1202.57,0.00011341,2]
[348246710,1736416263224,-1322.0,0.00011341,2]
[348246711,1736416263234,-500.0,0.00011341,2]
[348246712,1736416263243,-2173.7,0.00011341,2]
[348246713,1736416263253,-500.0,0.00011341,2]
[348246714,1736416263264,-241.87,0.00011341,2]
[348246715,1736416263273,-628.28,0.00011341,2]
[348246716,1736416263283,-732.41,0.00011341,2]
[348246717,1736416263293,-412.21,0.00011341,2]
[348246718,1736416263303,-605.47,0.00011341,2]
[348246719,1736416263313,-203.02836133,0.00011341,2]
[348246720,1736416263322,-992.63,0.00011341,2]
[348246721,1736416263333,-789.06,0.00011341,2]
[348246722,1736416263342,-377.89,0.00011341,2]
[348246723,1736416263352,-500.0,0.00011341,2]
[348246724,1736416263362,-1182.42,0.00011341,2]
[348246725,1736416263371,-707.76,0.00011341,2]
[348246726,1736416263381,-500.0,0.00011341,2]
[348246727,1736416263390,-500.0,0.00011341,2]
[348246728,1736416263400,-500.0,0.00011341,2]
[348246729,1736416263410,-2394.54,0.00011341,2]
[348246730,1736416263422,-734.110221,0.00011341,2]
[348246731,1736416263433,-500.0,0.00011342,2]
[348246732,1736416263443,-500.0,0.00011342,2]
[348246733,1736416263453,-500.0,0.00011342,2]
[348246734,1736416263462,-500.0,0.00011342,2]
[348246735,1736416263473,-252.72,0.00011342,2]
[348246736,1736416263483,-500.0,0.00011342,2]
[348246737,1736416263492,-326.36,0.00011342,2]
[348246738,1736416263502,-484.2,0.00011342,2]
[348246739,1736416263511,-500.0,0.00011342,2]
[348246740,1736416263521,-465.64,0.00011342,2]
[348246741,1736416263531,-500.0,0.00011342,2]
[348246742,1736416263541,-500.0,0.00011342,2]
[348246743,1736416263550,-500.0,0.00011342,2]
[348246744,1736416263559,-500.0,0.00011342,2]
[348246745,1736416263569,-500.0,0.00011342,2]
[348246746,1736416263578,-1704.96,0.00011342,2]
[348246747,1736416263588,-500.0,0.00011342,2]
[348246748,1736416263598,-722.649923,0.00011342,2]
[348246749,1736416263607,-612.44,0.00011342,2]
[348246750,1736416263617,-1697.74,0.00011342,2]
[348246751,1736416263627,-500.0,0.00011342,2]
[348246752,1736416263637,-500.0,0.00011342,2]
[348246753,1736416263647,-500.0,0.00011342,2]
[348246754,1736416263656,-500.0,0.00011342,2]
[348246755,1736416263667,-625.92,0.00011342,2]
[348246756,1736416263678,-500.0,0.00011342,2]
[348246757,1736416263688,-500.0,0.00011342,2]
[348246758,1736416263698,-500.0,0.00011342,2]
[348246759,1736416263707,-500.0,0.00011342,2]
[348246760,1736416263717,-536.12,0.00011342,2]
[348246761,1736416263727,-1819.6,0.00011342,2]
[348246762,1736416263737,-500.0,0.00011342,2]
[348246763,1736416263747,-500.0,0.00011342,2]
[348246764,1736416263756,-752.35793384,0.00011343,2]
[348246765,1736416263766,-597.0,0.0001135,2]
[348246766,1736416263776,-303.0,0.0001135,2]
[348246767,1736416263786,-150.0,0.00011354,2]
[348246768,1736416263796,-1955.7712503,0.00011355,2]
[348246769,1736416263806,-392.23067248,0.00011361,2]
[348246770,1736416263816,-972.59,0.00011364,2]
[348246771,1736416263827,-500.0,0.00011364,2]
[348246772,1736416263839,-512.29,0.00011364,2]
[348246773,1736416263849,-505.68,0.00011364,2]
[348246774,1736416263859,-500.0,0.00011364,2]
[348246775,1736416263869,-531.99,0.00011364,2]
[348246776,1736416263880,-880.05,0.00011364,2]
[348246777,1736416263891,-1053.8,0.00011364,2]
[348246778,1736416263902,-1265.65,0.00011364,2]
[348246779,1736416263914,-3069.57,0.00011364,2]
[348246780,1736416263927,-500.0,0.00011364,2]
[348246781,1736416263938,-500.0,0.00011364,2]
[348246782,1736416263948,-500.0,0.00011364,2]
[348246783,1736416263958,-500.0,0.00011364,2]
[348246784,1736416263969,-500.0,0.00011364,2]
[348246785,1736416263978,-708.34,0.00011364,2]
[348246786,1736416263988,-818.22,0.00011364,2]
[348246787,1736416263998,-784.13,0.00011364,2]
[348246788,1736416264008,-418.51345599,0.00011365,2]
[348246789,1736416264017,-550.24,0.00011365,2]
[348246790,1736416264027,-500.0,0.00011365,2]
[348246791,1736416264036,-500.0,0.00011365,2]
[348246792,1736416264046,-604.95,0.00011365,2]
[348246793,1736416264055,-500.0,0.00011365,2]
[348246794,1736416264065,-500.0,0.00011365,2]
[348246795,1736416264075,-500.0,0.00011365,2]
[348246796,1736416264084,-500.0,0.00011365,2]
[348246797,1736416264095,-500.0,0.00011365,2]
[348246798,1736416264104,-500.0,0.00011365,2]
[348246799,1736416264114,-500.0,0.00011365,2]
[348246800,1736416264124,-500.0,0.00011365,2]
[348246801,1736416264134,-500.0,0.00011365,2]
[348246802,1736416264143,-500.0,0.00011365,2]
[348246803,1736416264153,-500.0,0.00011365,2]
[348246804,1736416264163,-500.0,0.00011365,2]
[348246805,1736416264176,-327.6,0.00011365,2]
[348246806,1736416264334,-500.0,0.00011365,2]
[348246807,1736416264344,-500.0,0.00011365,2]
[348246808,1736416264354,-250.88,0.00011365,2]
[348246809,1736416264364,-500.0,0.00011365,2]
[348246810,1736416264373,-500.0,0.00011365,2]
[348246811,1736416264383,-500.0,0.00011365,2]
[348246812,1736416264392,-500.0,0.00011365,2]
[348246813,1736416264402,-500.0,0.00011365,2]
[348246814,1736416264411,-500.0,0.00011365,2]
[348246815,1736416264423,-500.0,0.00011365,2]
[348246816,1736416264432,-500.0,0.00011365,2]
[348246817,1736416264442,-500.0,0.00011365,2]
[348246818,1736416264451,-617.25,0.00011365,2]
[348246819,1736416264460,-500.0,0.00011365,2]
[348246820,1736416264469,-500.0,0.00011365,2]
[348246821,1736416264478,-500.0,0.00011365,2]
[348246822,1736416264487,-500.0,0.00011365,2]
[348246823,1736416264496,-339.28,0.00011365,2]
[348246824,1736416264506,-1268.36,0.00011365,2]
[348246825,1736416264515,-500.0,0.00011365,2]
[348246826,1736416264526,-500.0,0.00011365,2]
[348246827,1736416264536,-500.0,0.00011365,2]
[348246828,1736416264545,-500.0,0.00011365,2]
[348246829,1736416264555,-1182.89,0.00011365,2]
[348246830,1736416264564,-500.0,0.00011365,2]
[348246831,1736416264574,-500.0,0.00011365,2]